bitfinex/quotes_SOLUSD_20241019
["timestamp","ask_amount","ask_price","bid_price","bid_amount"]
[1729334057068,23.776884,154.84,154.73,26.06312186]
[1729334058157,30.235084,154.84,154.73,26.06312186]
[1729334058363,23.776884,154.82,154.73,26.06312186]
[1729334099297,23.76360163,154.85,154.73,26.06312186]
[1729334100676,23.776884,154.84,154.73,26.06312186]
[1729334103791,23.76360163,154.85,154.73,26.06312186]
[1729334104104,23.776884,154.84,154.73,26.06312186]
[1729334104903,23.76360163,154.85,154.74,23.776884]
[1729334105079,22.64016675,154.85,154.74,23.776884]
[1729334117287,22.64016675,154.85,154.75,6.6636]
[1729334121208,6.64766675,154.85,154.76,39.860884]
[1729334125292,15.8989,154.89,154.78,23.776884]
[1729334125504,15.8989,154.89,154.8,23.776884]
[1729334135505,15.8989,154.89,154.81,20.0]
[1729334136225,15.8989,154.89,154.8,20.0]
[1729334138019,23.776884,154.88,154.77,23.776884]
[1729334138324,23.776884,154.88,154.78,20.0]
[1729334142534,15.8989,154.89,154.78,20.0]
[1729334150928,22.3551,154.89,154.78,20.0]
[1729334151108,23.776884,154.88,154.77,20.0]
[1729334153530,21.7941,154.87,154.77,20.0]
[1729334153730,23.776884,154.86,154.77,20.0]
[1729334154031,23.776884,154.86,154.76,20.0]
[1729334169134,6.4581,154.85,154.76,20.0]
[1729334169338,23.776884,154.84,154.74,10.58783447]
[1729334181647,30.235384,154.84,154.74,10.58783447]
[1729334182037,6.2504,154.83,154.74,10.58783447]
[1729334182426,23.776884,154.82,154.74,10.58783447]
[1729334182835,23.776884,154.84,154.74,10.58783447]
[1729334183034,23.776884,154.84,154.75,15.4038]
[1729334183328,7.3736661,154.87,154.76,6.4854]
[1729334183930,6.2504,154.87,154.76,6.4854]
[1729334184934,23.776884,154.86,154.76,6.4854]
[1729334197241,23.776884,154.88,154.76,6.4854]
[1729334198347,23.776884,154.88,154.77,20.0]
[1729334210176,6.4572,154.87,154.77,20.0]
[1729334210383,23.776884,154.88,154.77,20.0]
[1729334220690,23.776884,154.86,154.77,20.0]
[1729334220877,23.776884,154.86,154.76,6.4854]
[1729334221083,15.1216,154.85,154.75,15.4038]
[1729334222477,30.235284,154.84,154.74,10.58783447]
[1729334222678,23.776884,154.82,154.72,6.301]
[1729334223183,30.235584,154.83,154.72,6.301]
[1729334223686,23.776884,154.83,154.72,6.301]
[1729334224190,23.776884,154.83,154.73,20.0]
[1729334229584,23.776884,154.84,154.73,20.0]
[1729334234203,15.1216,154.85,154.75,20.0]
[1729334234383,15.1216,154.85,154.75,35.9157]
[1729334247612,23.776884,154.84,154.75,35.9157]
[1729334261416,15.1216,154.85,154.75,35.9157]
[1729334272722,23.776884,154.84,154.75,35.9157]
[1729334272923,23.776884,154.84,154.72,6.301]
[1729334274327,23.776884,154.82,154.72,6.301]
[1729334290344,6.1895,154.83,154.72,6.301]
[1729334295349,21.84986359,154.85,154.73,23.776884]
[1729334295541,23.776884,154.84,154.73,23.776884]
[1729334296119,15.1216,154.85,154.73,23.776884]
[1729334296351,15.1216,154.85,154.74,15.035]
[1729334305240,23.776884,154.84,154.74,15.035]
[1729334321043,15.1216,154.85,154.74,15.035]
[1729334325959,23.776884,154.84,154.74,15.035]
[1729334339875,6.5568,154.83,154.72,6.301]
[1729334366861,6.5568,154.83,154.73,23.776884]
[1729334367061,23.776884,154.84,154.74,16.5895]
[1729334367281,15.1216,154.85,154.75,23.776884]
[1729334370872,15.1216,154.85,154.74,16.5895]
[1729334371275,15.1216,154.85,154.75,23.776884]
[1729334407618,15.1216,154.85,154.76,6.1734]
[1729334407814,1.12324573,154.87,154.77,23.776884]
[1729334408023,6.1119,154.88,154.78,15.7541]
[1729334422141,15.3568,154.89,154.78,15.7541]
[1729334426531,29.932384,154.88,154.76,12.21470543]
[1729334426735,23.776884,154.86,154.74,15.2879]
[1729334427240,6.1555,154.83,154.74,15.2879]
[1729334430132,15.4441,154.82,154.74,15.2879]
[1729334430332,21.52802617,154.82,154.74,15.2879]
[1729334430529,21.52802617,154.82,154.72,6.4361]
[1729334431939,23.776884,154.81,154.7,15.2879]
[1729334447165,21.52802617,154.82,154.7,15.2879]
[1729334448058,21.52802617,154.82,154.71,23.776884]
[1729334448264,21.52802617,154.82,154.72,6.2319]
[1729334448557,6.08392617,154.82,154.74,15.7159]
[1729334448743,6.08392617,154.82,154.75,23.776884]
[1729334449758,15.8512,154.86,154.75,23.776884]
[1729334460675,15.8512,154.86,154.74,15.7159]
[1729334460973,15.8512,154.86,154.75,23.776884]
[1729334462672,15.8512,154.86,154.74,15.7159]
[1729334462873,23.776884,154.85,154.74,15.7159]
[1729334463175,29.98868809,154.85,154.74,15.7159]
[1729334466974,6.21180409,154.85,154.75,23.776884]
[1729334478266,6.21180409,154.85,154.77,23.776884]
[1729334478477,6.21180409,154.85,154.78,16.0329]
[1729334488392,6.21180409,154.85,154.77,23.776884]
[1729334490685,6.21180409,154.85,154.76,6.0722]
[1729334491692,6.21180409,154.85,154.75,23.776884]
[1729334491895,6.21180409,154.85,154.74,16.0115]
[1729334492283,6.21180409,154.85,154.75,20.0]
[1729334492479,6.21180409,154.85,154.74,16.0115]
[1729334492794,23.776884,154.84,154.72,6.0302]
[1729334494384,23.776884,154.84,154.73,20.0]
[1729334499311,6.21180409,154.85,154.75,20.0]
[1729334503908,6.21180409,154.85,154.77,20.0]
[1729334506710,6.21180409,154.85,154.75,20.0]
[1729334506901,6.21180409,154.85,154.77,20.0]
[1729334507724,6.21180409,154.85,154.75,20.0]
[1729334507999,6.21180409,154.85,154.77,20.0]
[1729334510712,6.21180409,154.85,154.75,20.0]
[1729334510898,6.21180409,154.85,154.77,20.0]
[1729334512712,6.21180409,154.85,154.75,20.0]
[1729334512911,6.21180409,154.85,154.77,20.0]
[1729334513614,6.21180409,154.85,154.74,39.761084]
[1729334540528,6.21180409,154.85,154.74,15.9842]
[1729334547841,15.6097,154.82,154.71,9.89466491]
[1729334548743,23.776884,154.81,154.71,9.89466491]
[1729334558146,49.636384,154.81,154.71,9.89466491]
[1729334560432,23.776884,154.81,154.71,9.89466491]
[1729334566426,23.776884,154.79,154.71,9.89466491]
[1729334566628,23.776884,154.81,154.71,9.89466491]
[1729334570048,23.776884,154.81,154.7,15.8672]
[1729334580438,43.176884,154.81,154.7,15.8672]
[1729334580641,49.636584,154.81,154.7,15.8672]
[1729334587572,23.776884,154.79,154.7,15.8672]
[1729334587858,29.41932607,154.79,154.7,15.8672]
[1729334590043,23.776884,154.79,154.7,15.8672]
[1729334596466,19.4,154.78,154.7,15.8672]
[1729334596689,23.776884,154.79,154.7,15.8672]
[1729334613092,23.19245649,154.82,154.7,15.8672]
[1729334613268,43.776884,154.81,154.7,15.8672]
[1729334617075,23.776884,154.81,154.7,15.8672]
[1729334627205,19.4,154.8,154.7,15.8672]
[1729334627391,23.776884,154.81,154.7,15.8672]
[1729334629978,23.776884,154.78,154.7,15.8672]
[1729334630706,23.776884,154.79,154.7,15.8672]
[1729334632281,30.177684,154.79,154.7,15.8672]
[1729334635982,25.8615,154.77,154.69,0.04750916]
[1729334636200,23.776884,154.76,154.69,0.04750916]
[1729334637276,23.776884,154.74,154.69,0.04750916]
[1729334637486,23.776884,154.76,154.69,0.04750916]
[1729334650542,24.90084918,154.76,154.69,0.04750916]
[1729334650911,44.30084918,154.76,154.69,0.04750916]
[1729334651116,23.776884,154.74,154.69,0.04750916]
[1729334657424,23.776884,154.72,154.69,0.04750916]
[1729334657747,23.776884,154.74,154.69,0.04750916]
[1729334658642,23.776884,154.72,154.69,0.04750916]
[1729334658849,28.58307199,154.72,154.69,0.04750916]
[1729334659148,28.58307199,154.72,154.69,6.51160916]
[1729334661856,28.58307199,154.72,154.71,6.4637]
[1729334665050,28.58307199,154.72,154.69,0.04750916]
[1729334665236,28.58307199,154.72,154.7,6.464]
[1729334674250,28.58307199,154.72,154.71,6.4637]
[1729334677855,47.99307199,154.72,154.71,6.4637]
[1729334678058,28.58307199,154.72,154.71,6.4637]
[1729334682368,4.80618799,154.72,154.71,6.4637]
[1729334692570,1.12396518,154.76,154.69,16.17410916]
[1729334692776,12.7023,154.79,154.69,16.17410916]
[1729334693147,20.5136932,154.79,154.69,16.17410916]
[1729334693845,23.776884,154.78,154.69,16.17410916]
[1729334698171,23.776884,154.76,154.69,16.17410916]
[1729334698374,23.776884,154.78,154.69,16.17410916]
[1729334714570,23.776884,154.76,154.69,16.17410916]
[1729334715184,23.776884,154.76,154.69,0.04750916]
[1729334715580,30.4584265,154.76,154.69,0.04750916]
[1729334716698,36.9200265,154.76,154.69,0.04750916]
[1729334718100,49.8684265,154.76,154.69,0.04750916]
[1729334718395,23.776884,154.74,154.69,0.04750916]
[1729334720479,30.239484,154.74,154.69,0.04750916]
[1729334722818,6.4626,154.74,154.69,0.04750916]
[1729334723117,39.41,154.73,154.69,0.04750916]
[1729334723402,25.874,154.71,154.69,0.04750916]
[1729334723595,49.650984,154.7,154.69,0.04750916]
[1729334725908,56.32462298,154.7,154.69,0.04750916]
[1729334728804,98.52132298,154.7,154.69,0.04750916]
[1729334729009,143.93243138,154.7,154.69,0.04750916]
[1729334730298,128.52132298,154.7,154.69,0.04750916]
[1729334730713,137.90505666,154.7,154.69,0.04750916]
[1729334731208,128.52132298,154.7,154.69,0.04750916]
[1729334735114,129.64608468,154.7,154.69,0.04750916]
[1729334740834,123.56698468,154.7,154.69,0.04750916]
[1729334742825,93.56698468,154.7,154.69,0.04750916]
[1729334746008,123.56698468,154.7,154.69,0.04750916]
[1729334750405,131.7519339,154.7,154.69,0.04750916]
[1729334753313,141.12454821,154.7,154.69,0.04750916]
[1729334757353,152.67476574,154.7,154.69,0.04750916]
[1729334757518,141.12454821,154.7,154.69,0.04750916]
[1729334758207,152.67747892,154.7,154.69,0.04750916]
[1729334760341,152.67747892,154.7,154.69,0.01663711]
[1729334762029,136.55987892,154.7,154.69,0.01663711]
[1729334762921,106.55987892,154.7,154.69,0.01663711]
[1729334763440,95.00694821,154.7,154.69,0.01663711]
[1729334763647,85.6343339,154.7,154.69,0.01663711]
[1729334765823,96.2243339,154.7,154.69,0.01663711]
[1729334766142,65.21966869,154.7,154.69,0.01663711]
[1729334766338,44.26250068,154.7,154.69,0.01663711]
[1729334767031,63.67250068,154.7,154.69,0.01663711]
[1729334767345,83.67250068,154.7,154.69,0.01663711]
[1729334768018,119.03393838,154.7,154.69,0.01663711]
[1729334768246,128.40655269,154.7,154.69,0.01663711]
[1729334770220,128.40655269,154.7,154.64,16.0799]
[1729334770221,19.41,154.68,154.64,16.0799]
[1729334770548,6.4657,154.67,154.64,16.0799]
[1729334770750,13.14402081,154.67,154.64,16.0799]
[1729334771045,14.26878062,154.67,154.64,16.0799]
[1729334774241,7.80308062,154.67,154.64,16.0799]
[1729334774447,1.12475981,154.67,154.64,16.0799]
[1729334775240,7.59015981,154.67,154.64,16.0799]
[1729334779122,1.12475981,154.67,154.64,16.0799]
[1729334779325,1.12475981,154.67,154.62,6.4744]
[1729334779326,4.63877307,154.66,154.62,6.4744]
[1729334779526,6.4663,154.65,154.62,6.4744]
[1729334781451,6.4668,154.64,154.6,16.0799]
[1729334782654,6.4672,154.63,154.6,16.0799]
[1729334783730,6.4666,154.64,154.6,16.0799]
[1729334791159,7.59156887,154.64,154.6,16.0799]
[1729334804272,1.12496887,154.64,154.6,16.0799]
[1729334809176,6.4662,154.65,154.6,16.0799]
[1729334811473,6.4662,154.65,154.6,22.548]
[1729334820783,18.90660012,154.66,154.61,6.4677]
[1729334827178,6.4663,154.65,154.61,6.4677]
[1729334829187,18.90680012,154.66,154.62,6.4673]
[1729334829387,18.90680012,154.66,154.6,16.0799]
[1729334829580,18.90680012,154.66,154.61,6.4678]
[1729334831306,12.22920939,154.66,154.6,16.0799]
[1729334831600,12.22920939,154.66,154.62,6.4674]
[1729334831784,11.10477307,154.66,154.62,6.4674]
[1729334834601,4.63877307,154.66,154.65,6.4662]
[1729334846626,6.4638,154.71,154.66,6.4656]
[1729334848627,6.4641,154.7,154.66,6.4656]
[1729334848822,11.47301693,154.7,154.66,6.4656]
[1729334849027,11.47301693,154.7,154.62,6.4642]
[1729334849220,11.47301693,154.7,154.65,6.4661]
[1729334855133,30.241484,154.69,154.65,6.4661]
[1729334863132,19.41,154.68,154.65,6.4661]
[1729334863342,30.241484,154.69,154.65,6.4661]
[1729334864340,5.00891693,154.7,154.62,6.4642]
[1729334864520,5.00891693,154.7,154.67,6.4649]
[1729334876338,5.00891693,154.7,154.67,6.4652]
[1729334878244,5.00891693,154.7,154.68,6.4646]
[1729334882969,5.00891693,154.7,154.66,6.4655]
[1729334892395,5.00891693,154.7,154.67,6.4652]
[1729334892553,5.00891693,154.7,154.62,6.4642]
[1729334892760,5.00891693,154.7,154.66,6.4657]
[1729334902279,5.00891693,154.7,154.62,6.4642]
[1729334902667,6.4645,154.69,154.65,6.4662]
[1729334904885,6.4645,154.69,154.64,6.4665]
[1729334905790,6.465,154.68,154.64,6.4665]
[1729334908897,23.776884,154.69,154.61,16.0281]
[1729334909184,6.4653,154.68,154.63,6.467]
[1729334909981,5.4038322,154.68,154.63,6.467]
[1729334912891,5.4038322,154.68,154.61,16.0281]
[1729334913095,23.776884,154.69,154.64,6.4665]
[1729334913566,23.776884,154.69,154.65,6.4662]
[1729334919500,30.241484,154.69,154.65,6.4662]
[1729334921574,31.36590675,154.69,154.65,6.4662]
[1729334922696,30.241484,154.69,154.65,6.4662]
[1729334930403,16.50906299,154.71,154.64,21.3803]
[1729334930577,1.12443986,154.71,154.64,21.3803]
[1729334930782,6.4633,154.72,154.67,6.4653]
[1729334931599,6.4633,154.72,154.64,21.3803]
[1729334931600,6.4638,154.71,154.65,6.4662]
[1729334931814,6.4637,154.71,154.65,6.4662]
[1729334932103,23.776884,154.7,154.65,6.4662]
[1729334932604,26.4641,154.7,154.65,6.4662]
[1729334933616,27.58847798,154.7,154.65,6.4662]
[1729334943426,27.58847798,154.7,154.65,6.4662]
[1729334944595,20.0,154.68,154.6,22.279]
[1729334944921,30.242584,154.67,154.61,6.4675]
[1729334948894,43.186884,154.67,154.61,6.4675]
[1729334949094,23.776884,154.63,154.56,22.8078]
[1729334949418,43.186884,154.63,154.56,22.8078]
[1729334949619,6.4678,154.62,154.56,22.6333]
[1729334949931,30.245084,154.61,154.55,6.47]
[1729334952422,30.245084,154.61,154.56,6.4699]
[1729334952621,19.41,154.64,154.57,6.4695]
[1729334952622,6.4675,154.62,154.57,6.4695]
[1729334953929,7.59254069,154.62,154.57,6.4695]
[1729334954933,23.776884,154.61,154.54,0.6259383]
[1729334955238,30.245084,154.61,154.56,6.4698]
[1729334961141,7.59244069,154.62,154.57,6.4692]
[1729334961436,7.59244069,154.62,154.58,6.4691]
[1729334962237,7.59244069,154.62,154.57,6.4695]
[1729334968840,1.12504069,154.62,154.59,6.4683]
[1729334969141,20.0,154.63,154.59,6.4683]
[1729334970023,6.4669,154.64,154.59,6.4683]
[1729334971132,1.12479689,154.65,154.57,21.8363]
[1729334971318,7.59099689,154.65,154.6,6.4679]
[1729334971524,13.20841816,154.67,154.62,6.4674]
[1729334971731,7.59006034,154.67,154.62,6.4674]
[1729334977939,23.776884,154.66,154.6,6.4679]
[1729334978133,6.4662,154.65,154.6,6.4679]
[1729334979643,30.242684,154.66,154.61,6.4677]
[1729334992066,19.43,154.65,154.61,6.4677]
[1729334992344,23.776884,154.63,154.57,15.3658]
[1729334992531,23.776884,154.63,154.58,6.4691]
[1729334992937,23.776884,154.63,154.57,15.3658]
[1729334993129,14.33201441,154.65,154.6,6.4682]
[1729334993452,23.776884,154.64,154.6,6.4682]
[1729334994730,30.243484,154.64,154.6,6.4682]
[1729334995721,30.243484,154.64,154.57,15.3658]
[1729334996029,30.243484,154.64,154.59,6.4686]
[1729334999161,7.86571441,154.65,154.57,15.3658]
[1729334999337,7.59103993,154.65,154.6,6.4679]
[1729335001152,1.12483993,154.65,154.61,6.4677]
[1729335001647,1.12483993,154.65,154.62,6.4674]
[1729335001854,6.4659,154.66,154.62,6.4674]
[1729335003835,6.4659,154.66,154.61,6.4677]
[1729335005835,49.673484,154.65,154.6,6.4679]
[1729335006134,49.673484,154.65,154.58,6.4691]
[1729335006135,6.467,154.63,154.58,6.4691]
[1729335006344,50.243884,154.63,154.58,6.4691]
[1729335008933,30.244784,154.61,154.56,6.4697]
[1729335013441,6.4683,154.6,154.56,6.4697]
[1729335014729,30.244784,154.61,154.56,6.4697]
[1729335017778,4.42972213,154.62,154.54,0.6259383]
[1729335017949,10.89722213,154.62,154.57,6.4694]
[1729335022550,1.12507733,154.61,154.57,6.4694]
[1729335023056,30.245484,154.6,154.55,6.4703]
[1729335023954,43.206884,154.6,154.54,0.6259383]
[1729335024270,6.4691,154.59,154.54,7.0966383]
[1729335034872,6.4691,154.58,154.54,7.0966383]
[1729335042781,7.59438986,154.58,154.54,7.0966383]
[1729335045983,6.4691,154.58,154.54,7.0966383]
[1729335053667,6.4691,154.58,154.54,0.6259383]
[1729335055385,20.0,154.59,154.54,0.6259383]
[1729335055591,6.4694,154.58,154.54,0.6259383]
[1729335061397,6.4693,154.58,154.54,0.6259383]
[1729335062391,6.4697,154.57,154.54,0.6259383]
[1729335065277,19.43,154.59,154.54,0.6259383]
[1729335065602,24.90218337,154.6,154.54,0.6259383]
[1729335065603,6.4703,154.56,154.54,0.6259383]
[1729335066175,43.206884,154.57,154.54,0.6259383]
[1729335066492,6.4703,154.55,154.54,0.6259383]
[1729335069283,1.12548687,154.56,154.54,0.6259383]
[1729335071204,7.59578687,154.56,154.54,0.6259383]
[1729335071386,23.776884,154.55,154.54,0.6259383]
[1729335075001,1.12548687,154.56,154.54,0.6259383]
[1729335075206,6.4696,154.57,154.54,0.6259383]
[1729335088822,23.776884,154.57,154.54,0.6259383]
[1729335089120,30.246484,154.57,154.54,0.6259383]
[1729335094229,6.4699,154.56,154.54,0.6259383]
[1729335095813,7.59511871,154.56,154.54,0.6259383]
[1729335099121,1.12521871,154.56,154.54,0.6259383]
[1729335104430,7.59521871,154.56,154.54,0.6259383]
[1729335117339,30.247184,154.55,154.54,0.6259383]
[1729335122158,69.677184,154.55,154.54,0.19397159]
[1729335123052,99.677184,154.55,154.54,0.19397159]
[1729335123546,111.24748873,154.55,154.54,0.19397159]
[1729335124239,117.24944059,154.55,154.54,0.19397159]
[1729335124633,81.24748873,154.55,154.54,0.19397159]
[1729335125154,69.677184,154.55,154.54,0.19397159]
[1729335133667,99.677184,154.55,154.54,0.19397159]
[1729335138443,111.23072822,154.55,154.54,0.19397159]
[1729335139339,119.90783387,154.55,154.54,0.19397159]
[1729335141141,125.89582531,154.55,154.54,0.19397159]
[1729335147462,23.776884,154.47,154.46,15.9474]
[1729335147965,23.776884,154.47,154.45,6.6157]
[1729335148168,24.90263929,154.47,154.45,6.6157]
[1729335148353,6.4744,154.46,154.42,16.2678]
[1729335148665,23.776884,154.45,154.42,16.2678]
[1729335148870,23.776884,154.45,154.42,15.7678]
[1729335149464,6.4746,154.45,154.42,15.7678]
[1729335150260,23.776884,154.44,154.42,15.7678]
[1729335152057,30.252284,154.43,154.41,6.2403]
[1729335152254,23.776884,154.42,154.38,16.8937383]
[1729335152658,6.4754,154.43,154.38,23.3710383]
[1729335154769,19.43,154.42,154.38,23.3710383]
[1729335154947,6.4754,154.43,154.38,23.3710383]
[1729335160660,43.776884,154.45,154.38,16.8937383]
[1729335160973,6.475,154.44,154.39,6.4771]
[1729335164955,19.43,154.43,154.39,6.4771]
[1729335165159,6.475,154.44,154.39,6.4771]
[1729335168379,7.60075763,154.44,154.39,6.4771]
[1729335170783,30.252384,154.43,154.38,23.3711383]
[1729335171457,23.776884,154.43,154.38,16.8937383]
[1729335171664,6.476,154.42,154.38,16.8937383]
[1729335172886,23.776884,154.43,154.38,16.8937383]
[1729335172887,6.4762,154.41,154.38,16.8937383]
[1729335175576,7.84331277,154.44,154.38,16.8937383]
[1729335175774,14.31841277,154.44,154.39,6.4767]
[1729335176076,6.4759,154.42,154.38,16.8937383]
[1729335176270,6.4759,154.42,154.38,23.3711383]
[1729335176672,6.4755,154.43,154.38,23.3711383]
[1729335180394,23.776884,154.42,154.38,7.1033383]
[1729335180691,30.252784,154.42,154.38,7.1033383]
[1729335182763,23.776884,154.4,154.38,0.6259383]
[1729335183974,20.0,154.43,154.38,0.6259383]
[1729335184170,23.776884,154.42,154.38,7.1032383]
[1729335187091,30.252984,154.42,154.38,0.6259383]
[1729335191693,31.37902655,154.42,154.38,0.6259383]
[1729335197592,6.4764,154.41,154.38,0.6259383]
[1729335197798,23.776884,154.4,154.38,0.6259383]
[1729335201988,30.253584,154.4,154.38,0.6259383]
[1729335204607,27.27014466,154.42,154.38,0.6259383]
[1729335204789,23.776884,154.41,154.38,0.6259383]
[1729335205109,30.253484,154.41,154.38,0.6259383]
[1729335205410,23.776884,154.41,154.38,0.6259383]
[1729335205712,30.253184,154.41,154.38,0.6259383]
[1729335208312,23.776884,154.39,154.38,0.6259383]
[1729335209720,20.0,154.41,154.38,0.6259383]
[1729335210305,23.776884,154.4,154.38,0.6259383]
[1729335222996,30.253584,154.4,154.38,0.6259383]
[1729335225603,23.776884,154.39,154.38,0.6259383]
[1729335237725,23.776884,154.41,154.38,0.6259383]
[1729335237929,29.30867761,154.41,154.38,0.6259383]
[1729335239507,35.78497761,154.41,154.38,0.6259383]
[1729335241329,55.21497761,154.41,154.38,0.6259383]
[1729335243034,48.73867761,154.41,154.38,0.6259383]
[1729335243232,23.776884,154.39,154.38,0.6259383]
[1729335243534,49.683984,154.39,154.38,0.6259383]
[1729335245638,69.683984,154.39,154.38,0.6259383]
[1729335246022,69.683984,154.39,154.38,0.19579284]
[1729335250734,76.37396735,154.39,154.38,0.19579284]
[1729335251112,106.37396735,154.39,154.38,0.19579284]
[1729335251315,123.85164114,154.39,154.38,0.19579284]
[1729335252137,132.52874679,154.39,154.38,0.19579284]
[1729335252523,139.16044679,154.39,154.38,0.19579284]
[1729335254835,126.54287422,154.39,154.38,0.19579284]
[1729335255037,126.54287422,154.39,154.38,0.17354629]
[1729335256645,106.54287422,154.39,154.38,0.17354629]
[1729335257742,126.54287422,154.39,154.38,0.17354629]
[1729335258748,115.051073,154.39,154.38,0.17354629]
[1729335267649,126.57556315,154.39,154.38,0.17354629]
[1729335267831,96.57556315,154.39,154.38,0.17354629]
[1729335268642,85.051073,154.39,154.38,0.17354629]
[1729335270331,115.051073,154.39,154.38,0.17354629]
[1729335270548,126.57556315,154.39,154.38,0.17354629]
[1729335277950,94.1215735,154.39,154.38,0.17354629]
[1729335278248,82.59708335,154.39,154.38,0.17354629]
[1729335279264,106.37396735,154.39,154.38,0.17354629]
[1729335279634,117.8984575,154.39,154.38,0.17354629]
[1729335286858,87.8984575,154.39,154.38,0.17354629]
[1729335287039,76.37396735,154.39,154.38,0.17354629]
[1729335287542,85.051073,154.39,154.38,0.17354629]
[1729335289352,96.57556315,154.39,154.38,0.17354629]
[1729335289543,85.051073,154.39,154.38,0.17354629]
[1729335289864,115.051073,154.39,154.38,0.17354629]
[1729335290162,126.57556315,154.39,154.38,0.17354629]
[1729335292770,68.2144735,154.39,154.38,0.17354629]
[1729335292973,30.0,154.39,154.38,0.17354629]
[1729335293263,30.0,154.39,154.38,6.65104629]
[1729335293865,5.53179361,154.41,154.4,6.4766]
[1729335299576,1.12460773,154.45,154.38,22.84864629]
[1729335299867,23.776884,154.47,154.43,6.4752]
[1729335300081,31.3626359,154.47,154.43,6.4752]
[1729335300868,31.3626359,154.47,154.39,16.2427]
[1729335301049,7.5857519,154.47,154.45,6.4744]
[1729335301245,7.5857519,154.47,154.45,22.7171]
[1729335301678,7.5857519,154.47,154.46,6.4741]
[1729335304754,23.776884,154.54,154.5,6.4721]
[1729335304956,23.776884,154.54,154.45,16.2427]
[1729335304957,23.776884,154.54,154.46,6.4741]
[1729335305155,23.776884,154.54,154.5,6.4721]
[1729335307774,23.776884,154.54,154.5,6.4724]
[1729335308161,32.65039829,154.56,154.51,6.4717]
[1729335308363,20.0,154.56,154.52,6.4712]
[1729335308957,17.11596807,154.57,154.52,6.4712]
[1729335309270,10.64646807,154.57,154.53,6.4709]
[1729335311651,10.64646807,154.57,154.54,6.4706]
[1729335326987,30.246884,154.56,154.52,6.4715]
[1729335327186,6.4714,154.53,154.48,28.8065]
[1729335327486,6.4708,154.54,154.49,6.4728]
[1729335330285,6.4713,154.53,154.48,22.7159]
[1729335330486,26.4712,154.53,154.47,6.4735]
[1729335330698,23.776884,154.52,154.47,6.4735]
[1729335331792,30.248884,154.52,154.47,6.4735]
[1729335332371,31.3731492,154.52,154.47,6.4735]
[1729335334815,30.248884,154.52,154.47,6.4735]
[1729335343198,6.4722,154.51,154.47,6.4735]
[1729335343411,23.776884,154.5,154.47,6.4735]
[1729335344496,39.46,154.53,154.47,6.4735]
[1729335344705,23.776884,154.51,154.47,6.4735]
[1729335345371,26.4712,154.53,154.48,6.4729]
[1729335345574,26.4712,154.53,154.49,6.4725]
[1729335345575,23.776884,154.53,154.49,6.4725]
[1729335346016,7.59506838,154.54,154.49,6.4726]
[1729335346175,23.776884,154.53,154.49,6.4726]
[1729335347899,23.776884,154.53,154.44,21.7039]
[1729335348079,6.4708,154.54,154.49,6.4726]
[1729335349208,23.776884,154.53,154.49,6.4726]
[1729335350925,23.776884,154.54,154.5,6.4722]
[1729335366796,24.90074808,154.54,154.5,6.4722]
[1729335367519,23.776884,154.54,154.5,6.4722]
[1729335369321,20.0,154.56,154.48,15.2385]
[1729335369525,6.4705,154.55,154.51,6.472]
[1729335369693,26.47,154.56,154.51,6.472]
[1729335374227,26.47,154.56,154.51,5.4159]
[1729335379131,23.776884,154.55,154.48,15.2385]
[1729335379327,6.4709,154.54,154.49,6.4727]
[1729335384930,6.4715,154.53,154.47,6.4734]
[1729335385228,6.4715,154.53,154.44,22.5663]
[1729335385429,43.236884,154.55,154.47,6.4733]
[1729335385610,6.4715,154.53,154.44,22.5663]
[1729335385811,6.4715,154.53,154.47,6.4734]
[1729335386139,6.4717,154.52,154.47,6.4736]
[1729335386430,6.4717,154.52,154.48,6.4732]
[1729335386632,6.4717,154.52,154.44,22.5663]
[1729335387437,6.4717,154.52,154.47,6.4737]
[1729335388134,7.59571737,154.52,154.47,6.4737]
[1729335389313,23.776884,154.51,154.47,6.4737]
[1729335390444,23.776884,154.51,154.44,22.5663]
[1729335390617,30.248984,154.51,154.44,22.5663]